Cogmind - Beta 15 @@@ ROGUE MODE // 2025.05.15 @ 12:21:49 Player: Cholfo Result: Destroyed by J1-RS6(R) with Subdweller Laser Performance ------------- Evolutions (0) 0 Regions Visited (2) 400 Robots Destroyed (21) 105 Value Destroyed (531) 531 Prototype IDs (0) 0 Alien Tech Used (0) 0 Bonus (0) 0 TOTAL SCORE: 1036 Bonus ------- None Cogmind --------- Core Integrity 0/250 Matter 300/300 Energy 160/160 System Corruption 1% Temperature Cool (6) Movement Rolling (140) Ox4 Location -10/Subcaves Parts ------- > --- POWER (1) -------- Light Nuclear Core > --- PROPULSION (2) --- Wheel Wheel > --- UTILITY (2) ------ Huge Storage Unit Terrain Scanner > --- WEAPON (2) ------- Assault Rifle Mace (fused) > --- INVENTORY (25) --- Light Treads Wheel Wheel Wheel Wheel Wheel Wheel Wheel Wheel Subdweller Monowheel Medium Matter Pod (100) Subdweller Optics Improved Terrain Scanner Seismic Detector Light Armor Plating Light Armor Plating Small Laser Small Laser Subdweller Beam Cannon Grenade Launcher Grenade Launcher Plasma Cutter Peak State ------------ > --- POWER ------------ Light Nuclear Core > --- PROPULSION ------- Wheel Wheel > --- UTILITY ---------- Huge Storage Unit Terrain Scanner > --- WEAPON ----------- Assault Rifle Mace > --- INVENTORY -------- Light Treads Wheel Wheel Wheel Wheel Wheel Wheel Wheel Wheel Medium Matter Pod Improved Terrain Scanner Seismic Detector Light Armor Plating Light Armor Plating Small Laser Small Laser Grenade Launcher Grenade Launcher Plasma Cutter [Rating: 12] Favorites ----------- Power Light Ion Engine Engine Light Ion Engine Power Core Light Nuclear Core Propulsion Wheel Treads Light Treads Wheel Wheel Utility Seismic Detector Device Seismic Detector Storage Huge Storage Unit Weapon Assault Rifle Energy Gun Small Laser Ballistic Gun Assault Rifle Impact Weapon Mace Build | -11 -10 -10 ------- Run | Yrd Mat Sub Slots Evolved . | . . . Power . | . . . Propulsion . | . . . Utility . | . . . Weapon . | . . . Parts Attached 18 | 7 11 . Power 3 | 1 2 . Engine 2 | 1 1 . Core 1 | . 1 . Reactor . | . . . Propulsion 7 | 2 5 . Treads 2 | 2 . . Leg . | . . . Wheel 5 | . 5 . Hover . | . . . Flight . | . . . Utility 4 | 2 2 . Device 2 | 1 1 . Storage 2 | 1 1 . Processor . | . . . Hackware . | . . . Protection . | . . . Artifact . | . . . Weapon 4 | 2 2 . Energy Gun 1 | 1 . . Energy Cannon . | . . . Ballistic Gun 2 | 1 1 . Ballistic Cannon . | . . . Launcher . | . . . Special Weapon . | . . . Impact Weapon 1 | . 1 . Slashing Weapon . | . . . Piercing Weapon . | . . . Special Melee Weapon . | . . . Unidentified Prototypes . | . . . Parts Lost 6 | . 6 . Power 2 | . 2 . Propulsion 2 | . 2 . Utility 1 | . 1 . Weapon 1 | . 1 . Highest Loss Streak 4 | . 4 . To Critical Strikes . | . . . Average Backups 10 | 2 10 19 Power . | . . . Propulsion 2 | 1 1 9 Utility 3 | . 4 5 Weapon 2 | . 2 4 Tool/Special . | . . . Unused Backups 17 | . 1 16 Power . | . . . Propulsion 7 | . 1 6 Utility 6 | . . 6 Weapon 3 | . . 3 Tool/Special 1 | . . 1 Average Slot Usage (%) 95 | . 95 100 Engine 9 | . 10 . Core 1 | . . 14 Treads 7 | . 7 . Wheel 20 | . 19 28 Device 13 | . 13 14 Storage 14 | . 14 14 Energy Gun 4 | . 5 . Ballistic Gun 14 | . 14 14 Impact Weapon 9 | . 8 14 Peak Build Rating 12 | 7 12 12 Average Rating 8 | 5 8 12 On Entrance 6 | . 7 12 Naked Turns . | . . . Heaviest Build 90 | 13 90 90 Greatest Support 40 | 40 40 20 Greatest Overweight (x) 4 | 1 4 4 Average Overweight (x) 2 | . 2 4 Largest Inventory Capacity 25 | 8 25 25 Average Capacity 18 | 7 18 25 Most Carried 22 | 5 20 22 Average Carried 10 | 2 10 19 Final Capacity 25 | 8 25 25 Final Carried 22 | 5 19 22 Class Distribution -------------------- 100% | Mutant Dominant Class ---------------- Mutant | -10/Materials Mutant | -10/Subcaves Resources | -11 -10 -10 ----------- Run | Yrd Mat Sub Matter Collected 572 | 245 304 23 Remotely . | . . . Salvage Created 693 | 115 530 48 Parts 37 | 4 31 2 Haulers Intercepted . | . . . Recyclers Shooed . | . . . Parts Field Recycled . | . . . Retrieved Matter . | . . . Parts Self-Destructed . | . . . Prevented . | . . . Kills | -11 -10 -10 ------- Run | Yrd Mat Sub Combat Hostiles Destroyed 15 | . 14 1 Melee 1 | . . 1 Guns 10 | . 10 . Classes Destroyed 7 | 2 4 1 Worker 1 | . 1 . Builder 2 | . 2 . Tunneler 2 | 1 1 . Recycler 1 | 1 . . Swarmer 3 | . 3 . Grunt 11 | . 11 . Subdweller 1 | . . 1 Best Kill Streak 7 | 2 7 1 Combat Bots Only 3 | . 3 1 Max Kills in Single Turn 2 | 1 2 1 Gunslinging . | . . . Exploded . | . . . Melee 1 | . . 1 Uniques/NPCs Destroyed . | . . . Combat | -11 -10 -10 -------- Run | Yrd Mat Sub Hostile Shots Fired 110 | . 100 10 Missed 30 | . 25 5 Hits 80 | . 75 5 Projectile 80 | . 75 5 Critical Strikes 1 | . 1 . Damage Taken 1049 | . 937 112 Core 252 | . 213 39 Absorbed by Shields . | . . . Core Remaining (%) 100 | 100 . . Volleys Fired 64 | 11 53 . Largest 2 | 2 2 . Hottest 60 | 60 60 . Shots Fired 119 | 22 97 . Gun 119 | 22 97 . Cannon . | . . . Launcher . | . . . Special . | . . . Kinetic 62 | 11 51 . Thermal 57 | 11 46 . Explosive . | . . . Electromagnetic . | . . . Robot Hit Streak 8 | 5 8 . Robot Miss Streak 5 | 5 3 . Penetration Max . | . . . Secondary Targets 2 | . 2 . Max Gunslinging Chain 1 | . 1 . Shots Hit Robots 94 | 13 80 1 Core Hits 37 | 5 31 1 Critical Kills . | . . . Critical Parts Destroyed 1 | . 1 . Critical Strikes 1 | . 1 . Smash 1 | . 1 . Melee Attacks 40 | . 39 1 Impact 40 | . 39 1 Slashing . | . . . Piercing . | . . . Sneak Attacks . | . . . Combat Hostiles . | . . . Follow-up Attacks . | . . . Damage Inflicted 1658 | 132 1493 33 Guns 755 | 132 623 . Cannons . | . . . Explosions 176 | . 176 . Melee 727 | . 694 33 Ramming . | . . . Kinetic 354 | 59 295 . Thermal 401 | 73 328 . Explosive . | . . . Electromagnetic 176 | . 176 . Impact 727 | . 694 33 Slashing . | . . . Piercing . | . . . Highest Corruption 1 | . 1 1 Average Corruption 1 | . 1 1 Corruption Purged . | . . . Corruption Blocked . | . . . Effects 6 | . 6 . Message Errors 1 | . 1 . Matter Fused 3 | . 3 . Parts Rejected 1 | . 1 . Parts Fused 1 | . 1 . Overload Shots . | . . . Overflow Damage 128 | . 128 . Projectiles . | . . . Explosions 2 | . 2 . Melee 126 | . 126 . Knockbacks 2 | . 2 . Impact 2 | . 2 . Kinetic . | . . . Secondary . | . . . Self-Inflicted Damage 62 | . 62 . Shots 2 | . 2 . Rammed . | . . . Targets Rammed . | . . . Kicked . | . . . Crushed . | . . . Highest Temperature 132 | 40 132 . Average Temperature 33 | 24 35 . Received Heat Transfer 453 | . 438 15 Siege Activations . | . . . Martial Activations . | . . . Shielding Activations . | . . . Robots Disrupted . | . . . Combat Hostiles . | . . . Robots Corrupted 4 | . 4 . Combat Hostiles 4 | . 4 . Parts Fried 3 | . 3 . Impact Corruptions 6 | . 6 . Robots Melted . | . . . Combat Hostiles . | . . . Parts Melted . | . . . Heat Transferred 925 | 175 750 . Parts Sabotaged . | . . . Parts Stolen . | . . . Parts Stripped . | . . . Power Chain Reactions 1 | . 1 . Alert | -11 -10 -10 ------- Run | Yrd Mat Sub Maximum Alert Level . | . . . Low Security (%) 100 | 100 100 . Level 1 . | . . . Level 2 . | . . . Level 3 . | . . . Level 4 . | . . . Level 5 . | . . . High Security . | . . . Max Security . | . . . Peak Influence 81 | 5 81 . Initial . | . . . Average 21 | . 23 . Influence Increases 474 | 10 464 . Destroy 0b10 Robot/C 280 | . 280 . Destroy 0b10 Robot/NC 30 | 10 20 . Destroy Leader 50 | . 50 . Successful Hack 8 | . 8 . Disable Machine 45 | . 45 . Destroy Structure 16 | . 16 . Lose Combat Pursuer 45 | . 45 . Influence Decreases 474 | 10 460 4 Entered New Map 3 | . . 3 Time Decay 411 | 10 400 1 Lost Part 60 | . 60 . Squads Dispatched 3 | . 3 . Investigation 2 | . 2 . Extermination . | . . . Reinforcement 1 | . 1 . Assault . | . . . Garrison . | . . . Intercept . | . . . Searches Triggered . | . . . Construction Impeded . | . . . Haulers Reinforced . | . . . Active Scanning Responses . | . . . Cargo Convoy Interrupts . | . . . Stealth | -11 -10 -10 --------- Run | Yrd Mat Sub Distress Signals 2 | . 2 . Communications Jammed . | . . . Distress Signals . | . . . Times Spotted 36 | . 32 4 Peak Tracking Total 4 | . 4 3 Tactical Retreats 2 | . 2 . Traps | -11 -10 -10 ------- Run | Yrd Mat Sub Traps Triggered 3 | . 3 . Indirectly . | . . . Trap Hack Attempts . | . . . Triggered . | . . . Disarmed . | . . . Reprogrammed . | . . . Reused . | . . . Traps Extracted . | . . . Installed . | . . . Triggered . | . . . Machines | -11 -10 -10 ---------- Run | Yrd Mat Sub Machines Disabled 3 | . 3 . Max in Single Turn 2 | . 2 . Machines Repaired . | . . . Machines Dismantled . | . . . Machines Sabotaged . | . . . Overloaded Fab Kills . | . . . Hacking | -11 -10 -10 --------- Run | Yrd Mat Sub Machines Accessed 5 | . 5 . Terminals 5 | . 5 . Fabricators . | . . . Repair Stations . | . . . Recycling Units . | . . . Scanalyzers . | . . . Garrison Access . | . . . Total Hacks 16 | . 16 . Successful 5 | . 5 . Failed 11 | . 11 . Catastrophic 1 | . 1 . Database Lockouts . | . . . Manual 10 | . 10 . Terminals 16 | . 16 . Fabricators . | . . . Repair Stations . | . . . Recycling Units . | . . . Scanalyzers . | . . . Garrison Access . | . . . Terminal Hacks 2 | . 2 . Record 2 | . 2 . Fabricator Hacks . | . . . Repair Station Hacks . | . . . Recycling Unit Hacks . | . . . Scanalyzer . | . . . Garrison Access Hacks . | . . . Unauthorized Hacks 3 | . 3 . Terminals 3 | . 3 . Botnet 3 | . 3 . Fabricators . | . . . Repair Stations . | . . . Recycling Units . | . . . Scanalyzers . | . . . Garrison Access . | . . . Data Cores Recovered . | . . . Used . | . . . Hacking Detections 5 | . 5 . Full Trace Events 1 | . 1 . Feedback Events . | . . . Feedback Blocked . | . . . Robot Schematics Acquired . | . . . Robots Built . | . . . Authchips . | . . . Time . | . . . Total Robot Build Rating . | . . . Part Schematics Acquired . | . . . Parts Built . | . . . Authchips . | . . . Time . | . . . Total Part Build Rating . | . . . Parts Repaired . | . . . Time . | . . . Parts Recycled . | . . . Recycled Matter . | . . . Retrieved Matter . | . . . Retrieved Components . | . . . Parts Scanalyzed . | . . . Part Schematics Acquired . | . . . Parts Damaged . | . . . Bothacking | -11 -10 -10 ------------ Run | Yrd Mat Sub Used RIF Installer . | . . . Robots Hacked . | . . . Non-combat . | . . . Combat . | . . . Robot Hacks Applied . | . . . Relay Couplers Released . | . . . Fabnet Peak Effective % . | . . . Robots Rewired . | . . . Allies Hacked . | . . . Hacks Repelled . | . . . Allies | -11 -10 -10 -------- Run | Yrd Mat Sub Total Allies . | . . . Largest Group . | . . . Highest-Rated Group . | . . . Highest-Rated Ally . | . . . Total Orders . | . . . Ally Attacks . | . . . Total Damage . | . . . Kills . | . . . Allies Corrupted . | . . . Allies Melted . | . . . Intel | -11 -10 -10 ------- Run | Yrd Mat Sub Active Infowar (turns) 1499 | 23 1352 124 Terrain 367 | . 243 124 Seismic 1132 | 23 1109 . Robot Analysis Total . | . . . Derelict Logs Recovered . | . . . Drone Launches . | . . . Drone Recoveries . | . . . Exploration | -11 -10 -10 ------------- Run | Yrd Mat Sub Turns Passed 1638 | 117 1397 124 Spaces Moved 920 | 48 796 76 Core 5 | 5 . . Treads 212 | 43 169 . Legs . | . . . Wheels 703 | . 627 76 Hover . | . . . Flight . | . . . Fastest Speed 50 | 50 80 140 Average Speed 136 | 149 135 140 Slowest Speed 160 | 160 160 140 Overloaded Moves . | . . . Propulsion Burnouts . | . . . Robots Hopped . | . . . Potential Cave-ins 3 | . 3 . Cave-ins Triggered . | . . . Exploration Rate (%) 36 | 4 99 6 Regions Visited 2 Branch Regions 1 Pre-discovered Areas . | . . . Known Exits Taken . | . . . Unknown Exits Taken 2 | 1 1 . Scrap Searched . | . . . Spaces Dug 15 | . 15 . Terrain Destroyed 18 | . 18 . Melee 15 | . 15 . Projectile . | . . . AOE 3 | . 3 . Terrain Rammed . | . . . Walls Destroyed . | . . . Machines Disabled . | . . . Actions | -11 -10 -10 --------- Run | Yrd Mat Sub Total 1114 | 70 952 92 Wait 46 | . 34 12 Move 918 | 47 795 76 Hop . | . . . Pick Up 25 | 5 17 3 Fast Attach 9 | 7 2 . Attach 5 | . 5 . Detach . | . . . Swap 5 | . 5 . Drop 2 | . 2 . Fire 64 | 11 53 . Melee 40 | . 39 1 Ram . | . . . Kick . | . . . Crush . | . . . Escape Stasis . | . . . Rewire . | . . . Trap . | . . . Miscellaneous . | . . . Route ------- -11/Scrapyard -10/Materials (discovered 5 exits: [*Mat x3] / [*Min] / [*Sub]) -10/Subcaves History --------- Turn | Location | Event 5 | -11/Scrapyard | Discovered new exit (range 15) 118 | -11/Scrapyard | Entered Materials 310 | -10/Materials | Build established: Mutant 450 | -10/Materials | Discovered new exit (range 12) 550 | -10/Materials | Lost 4 parts (1p2n1w) 639 | -10/Materials | Discovered new exit (range 13) 718 | -10/Materials | Derelicts attacked the area 760 | -10/Materials | Core integrity fell below 50% 814 | -10/Materials | Discovered new exit (range 9) 1073 | -10/Materials | Discovered new exit (range 12) 1247 | -10/Materials | Core integrity fell below 20% 1510 | -10/Materials | Discovered new exit (range 4) 1515 | -10/Materials | Entered Subcaves 1542 | -10/Subcaves | Shifting Twisted Machinery released Sub. Optics 1546 | -10/Subcaves | Shifting Twisted Machinery released Mak. Sword 1639 | -10/Subcaves | Destroyed by J1-RS6(R) with Subdweller Laser Last Messages --------------- 01333_ Acquired 20 matter. 01365_ KAIVJ&FP>DQ AZXO<|Q4YREBA0 01501_ System corrupted: Mace fused. 01510_ EXIT=FOUND LOCATION=UNKNOWN AMBIENT_HEAT=-10 GOAL=ESCAPE 01515_ Acquired 14 matter. 01518_ Acquired 9 matter. Sub. Optics falls loose from the Twisted Machinery. Mak. Sword falls loose from the Twisted Machinery. 01553_ Acquired Sub. Optics. 01588_ MV-7PM(u) builds Twisted Machinery. 01612_ OX-L1D(O) collects matter. 01624_ 6G-ERS(R) destroyed. 01628_ OX-L1D(O) puts together Flamer. 01629_ Acquired Sub. Beam Cannon. 01632_ Acquired Sub. Monowheel. Map ----- +----------------------------------------------------+ | ??????????????????????????? ???????????????????? | | ??????????????????????????## ??????#????????????? | | ??????????????????????????# ???????????????????? | | ??????????????????????????# ???????????????????? | | ??????????????????????????# ????????????????#??? | | ????????????????????????#?# ???????????????????? | | ????????????????????????### ##??????????????????? | | ?????????????????????????# #???????#??????????? | | ??????????????????????????# ###????????????????? | | ?????????????????????????## # #????????????????? | | ?????????????????????????# ##???????????????? | | ???????????????????????#### ###?#???####????? | | ???????????????????#???# % ###### "###??? | | ??????????????????????### # ##"""""##??? | | ???????????????#???#?##"#" % """""" "?? | | ?????????????##??????# % """" ""#? | | ?????????????# #???#" ##" % ## ## ""/ "#?? | | ?????????????#""######??## ## #### ######?# | | ????????????##""""##??####R ######### ##??????? | | ????????# ### """"#?## ######## # # #???????? | | ?????????"" "" ### % ####???????? | | ????? ???"" ""### % # ### ##????????? | | ??????????#?????## ##### ##?##### ##???????? | | ?????????????#??# ###### ####???# %#???????? | | ????????????????# # # | ### ##### #?????#?? | | ????????????????## %@ ## ## #???????? | | ????????????????### ## ## #???????? | | ??????????????????######## & #???????? | | ??????????????????#??????# ## ####??????? | | ????????????#?????#???#?#### [[[#####?????????? | | ???????????????????????????## O! ##?????????????? | | ????????????????????????????## ##??????????????? | | ?????????????????????#???????### #???????????????? | | ??????????????????????????????? ??????????????? | | ????????????????????#?????????# ????????#????? | | ?????????????????????????? ??# ????????????? | | ?????????????????????????????? ????????????? | | ???????????????????????? ????? ????????????? | | ?????????????????????? ?????? # ???????????? | | ?????????????????????????????# ???????????? | | ??????????????????????????????#### ???????????? | | ?????????????????????????????????? ???????????? | | ?????????????????????????????????? ???????????? | | ??????????????????????????????????% ?????????????? | | ??????????????????????????????????? ?????????????? | | ?????????????????????????????????????????????????? | | ?????????????????????????????????????????????????? | | ?????????????????????????????????????????????????? | | ?????????????????????????????????????????????????? | | ?????????????????????????????????????????????????? | +----------------------------------------------------+ Best States ------------- Heat Dissipation 25 Energy Generation 14 Energy Capacity 250 Matter Stores 300 Matter Capacity 300 Sight Range 16 Terrain Scan Range 14 Terrain Scan Density 10 Evasion (%) 44 Recoil Reduction 2 Item Schematics ----------------- None Robot Schematics ------------------ None Fabricated ------------ Nothing Repaired ---------- Nothing Alien Tech Used ----------------- None Achievements -------------- None Challenges ------------ None Game ------ Seed SchematicCouplerBallwheel Manual? 0 Play Time 00:13:32 Cumulative 14.2 hours Start 2025.05.15 @ 12:09:09 End 2025.05.15 @ 12:21:49 Sessions 1 Manual Loads 0 Difficulty Rogue Special Mode None Game No. 15 Rogue 15 Adventurer 0 Explorer 0 Win Type - Total 0 Types 0/0/0/0/0/0/0/0/0/0 Lore% 21 Gallery% 20 Achievement% 19 Wizard Run 0 Options --------- Layout 1 ASCII 1 Keyboard 1 Movement Vi Keybinds 0 Fullscreen 2 Font 32/SmallcapsGlow Map View 50x35 Zoom Use 0% Tactical HUD 1 Map Filters NONE Filters NONE Steam 1 RUN: 9ea8cf12-2204-47e6-ac18-62d3a96f8b51